Cogmind - Beta 16 @@@ ROGUE MODE // 2025.11.18 @ 17:25:36 Player: ClassActJerk Result: Destroyed self with Grenade Launcher Performance ------------- Evolutions (1) 500 Regions Visited (3) 600 Robots Destroyed (26) 130 Value Destroyed (489) 489 Prototype IDs (0) 0 Alien Tech Used (0) 0 Bonus (0) 0 TOTAL SCORE: 1719 Bonus ------- None Cogmind --------- Core Integrity 0/400 Matter 132/300 Energy 257/265 System Corruption 9% Temperature Cool (8) Movement Core (1000) Ox19 Location -9/Mines Parts ------- > --- POWER (1) -------- Reinforced Ion Engine (fused) > --- PROPULSION (2) --- (None) > --- UTILITY (3) ------ High-capacity Storage Unit > --- WEAPON (3) ------- Grenade Launcher Rocket Launcher Makeshift Sword > --- INVENTORY (20) --- (None) Peak State ------------ > --- POWER ------------ Ion Engine > --- PROPULSION ------- Light Treads Light Treads > --- UTILITY ---------- High-capacity Storage Unit Sensor Array Core Shielding > --- WEAPON ----------- Light Assault Rifle Light Assault Rifle Makeshift Sword > --- INVENTORY -------- Light Ion Engine Light Ion Engine Medium Matter Pod Light Cannon Grenade Launcher Rocket Launcher Rocket Launcher [Rating: 12] Favorites ----------- Power Ion Engine Engine Ion Engine Propulsion Light Treads Treads Light Treads Leg Aluminum Leg Utility High-capacity Storage Unit Device Sensor Array Storage High-capacity Storage Unit Protection Core Shielding Weapon Light Assault Rifle Energy Gun Small Laser Ballistic Gun Light Assault Rifle Ballistic Cannon Light Cannon Launcher Grenade Launcher Slashing Weapon Makeshift Sword Build | -11 -10 -9 -9 ------- Run | Yrd Mat Mat Min Slots Evolved 2 | . . 2 . Power . | . . . . Propulsion . | . . . . Utility 1 | . . 1 . Weapon 1 | . . 1 . Parts Attached 25 | 6 4 2 13 Power 5 | 1 1 . 3 Engine 5 | 1 1 . 3 Core . | . . . . Reactor . | . . . . Propulsion 4 | 2 . . 2 Treads 2 | 2 . . . Leg 2 | . . . 2 Wheel . | . . . . Hover . | . . . . Flight . | . . . . Utility 7 | 1 3 1 2 Device 2 | . 1 1 . Storage 3 | 1 1 . 1 Processor . | . . . . Hackware . | . . . . Protection 2 | . 1 . 1 Artifact . | . . . . Weapon 9 | 2 . 1 6 Energy Gun 1 | 1 . . . Energy Cannon . | . . . . Ballistic Gun 3 | 1 . 1 1 Ballistic Cannon 1 | . . . 1 Launcher 3 | . . . 3 Special Weapon . | . . . . Impact Weapon . | . . . . Slashing Weapon 1 | . . . 1 Piercing Weapon . | . . . . Special Melee Weapon . | . . . . Unidentified Prototypes . | . . . . Parts Lost 18 | . 2 . 16 Power 4 | . 1 . 3 Propulsion 4 | . . . 4 Utility 5 | . 1 . 4 Weapon 5 | . . . 5 Highest Loss Streak 7 | . 1 . 7 To Critical Strikes 1 | . . . 1 Average Backups 4 | 1 4 5 4 Power 1 | 1 1 2 1 Propulsion . | . . . . Utility . | . 1 . . Weapon 2 | . 2 3 2 Tool/Special . | . . . . Unused Backups . | . . . . Power . | . . . . Propulsion . | . . . . Utility . | . . . . Weapon . | . . . . Tool/Special . | . . . . Average Slot Usage (%) 82 | . 91 99 75 Engine 10 | . 11 11 10 Treads 14 | . 28 22 7 Leg 2 | . . . 3 Device 7 | . 7 10 6 Storage 12 | . 14 11 12 Protection 4 | . . 11 4 Energy Gun 5 | . 14 11 1 Ballistic Gun 13 | . 14 22 10 Ballistic Cannon 1 | . . . 2 Launcher 2 | . . . 4 Slashing Weapon 6 | . . . 9 Peak Build Rating 12 | 6 7 9 12 Average Rating 8 | 4 6 8 9 On Entrance 5 | . 6 7 9 Avg Prop Armor Cover (%) . | . . . . Naked Turns . | . . . . Heaviest Build 59 | 10 48 50 59 Greatest Support 40 | 40 40 40 40 Greatest Overweight (x) 19 | . 1 1 19 Average Overweight (x) 2 | . . 1 4 Largest Inventory Capacity 20 | 8 20 20 20 Average Capacity 17 | 7 10 20 20 Most Carried 9 | 5 8 7 9 Average Carried 4 | 1 4 5 4 Final Capacity 20 | 8 20 20 20 Final Carried 7 | 2 6 7 . Class Distribution -------------------- 76% | Mutant 23% | Skirmisher Dominant Class ---------------- Mutant | -10/Materials Skirmisher | -9/Materials Mutant | -9/Mines Resources | -11 -10 -9 -9 ----------- Run | Yrd Mat Mat Min Matter Collected 634 | 268 19 30 317 Remotely . | . . . . Salvage Created 559 | 19 55 102 383 Parts 40 | 3 7 6 24 Haulers Intercepted . | . . . . Recyclers Shooed . | . . . . Parts Field Recycled . | . . . . Retrieved Matter . | . . . . Parts Self-Destructed . | . . . . Prevented . | . . . . Parts Restored . | . . . . Kills | -11 -10 -9 -9 ------- Run | Yrd Mat Mat Min Combat Hostiles Destroyed 23 | . 3 3 17 Guns 15 | . 3 3 9 Cannons 4 | . . . 4 AOE 4 | . . . 4 Classes Destroyed 7 | 1 2 1 3 Builder 1 | . 1 . . Tunneler 1 | 1 . . . Recycler 1 | . . . 1 Swarmer 14 | . 3 . 11 Grunt 7 | . . 3 4 Brawler 1 | . . . 1 Duelist 1 | . . . 1 Best Kill Streak 4 | 1 3 1 4 Combat Bots Only 4 | . 3 1 4 Max Kills in Single Turn 2 | 1 1 1 2 Gunslinging . | . . . . Exploded 1 | . . . 1 Melee . | . . . . Uniques/NPCs Destroyed . | . . . . Combat | -11 -10 -9 -9 -------- Run | Yrd Mat Mat Min Hostile Shots Fired 234 | . 47 19 168 Missed 45 | . 13 1 31 Hits 189 | . 34 18 137 Melee 7 | . . . 7 Projectile 182 | . 34 18 130 Critical Strikes 5 | . . . 5 Damage Taken 2029 | . 273 197 1559 Core 486 | . 68 18 400 Absorbed by Shields . | . . . . Redirected to Shielding 14 | . . 4 10 Core Remaining (%) 86 | 100 72 . . Volleys Fired 83 | 11 16 9 47 Largest 3 | 2 2 3 3 Hottest 80 | 60 60 80 80 Shots Fired 155 | 22 32 27 74 Gun 125 | 22 32 27 44 Cannon 18 | . . . 18 Launcher 12 | . . . 12 Special . | . . . . Kinetic 105 | 11 16 18 60 Thermal 38 | 11 16 9 2 Explosive 12 | . . . 12 Electromagnetic . | . . . . Robot Hit Streak 9 | 5 4 9 9 Robot Miss Streak 6 | 3 3 1 6 Penetration Max . | . . . . Secondary Targets 2 | . . . 2 Max Gunslinging Chain 1 | . . . 1 Shots Hit Robots 88 | 15 16 22 35 Core Hits 43 | 3 4 7 29 Critical Kills . | . . . . Critical Parts Destroyed 1 | . . . 1 Critical Strikes 2 | . . . 2 Destroy 1 | . . . 1 Blast 1 | . . . 1 Melee Attacks . | . . . . Impact . | . . . . Slashing . | . . . . Piercing . | . . . . Sneak Attacks . | . . . . Combat Hostiles . | . . . . Follow-up Attacks . | . . . . Damage Inflicted 1225 | 123 163 208 731 Guns 682 | 123 163 208 188 Cannons 214 | . . . 214 Explosions 329 | . . . 329 Melee . | . . . . Ramming . | . . . . Kinetic 641 | 57 87 117 380 Thermal 255 | 66 76 91 22 Explosive 329 | . . . 329 Electromagnetic . | . . . . Impact . | . . . . Slashing . | . . . . Piercing . | . . . . Highest Corruption 9 | . . . 9 Average Corruption 8 | . . . 8 Corruption Purged . | . . . . Corruption Blocked . | . . . . Effects 35 | . . . 35 Message Errors 10 | . . . 10 Matter Fused 6 | . . . 6 Heat Flow Errors 5 | . . . 5 Energy Discharges 3 | . . . 3 Parts Fused 1 | . . . 1 Data Loss (minor) 2 | . . . 2 Data Loss (major) 2 | . . . 2 Misfires 3 | . . . 3 Alerts 3 | . . . 3 Overload Shots . | . . . . Overflow Damage 21 | . . . 21 Projectiles . | . . . . Explosions 21 | . . . 21 Melee . | . . . . Knockbacks 3 | . . . 3 Impact . | . . . . Kinetic 3 | . . . 3 Secondary . | . . . . Self-Inflicted Damage 188 | . . . 188 Shots 7 | . . . 7 Rammed . | . . . . Targets Rammed . | . . . . Kicked . | . . . . Crushed . | . . . . Highest Temperature 241 | 40 40 80 241 Average Temperature 44 | 20 17 41 68 Received Heat Transfer 381 | . . 108 273 Effects 1 | . . . 1 Interference 1 | . . . 1 Siege Activations . | . . . . Martial Activations . | . . . . Shielding Activations . | . . . . Robots Disrupted . | . . . . Combat Hostiles . | . . . . Robots Corrupted . | . . . . Combat Hostiles . | . . . . Parts Fried . | . . . . Impact Corruptions . | . . . . Robots Melted . | . . . . Combat Hostiles . | . . . . Parts Melted . | . . . . Heat Transferred 575 | 150 175 200 50 Parts Sabotaged . | . . . . Parts Stolen . | . . . . Parts Stripped . | . . . . Power Chain Reactions . | . . . . Alert | -11 -10 -9 -9 ------- Run | Yrd Mat Mat Min Maximum Alert Level . | . . . . Low Security (%) 100 | 100 100 100 100 Level 1 . | . . . . Level 2 . | . . . . Level 3 . | . . . . Level 4 . | . . . . Level 5 . | . . . . High Security . | . . . . Max Security . | . . . . Peak Influence 186 | 5 50 20 186 Initial . | . . . . Average 36 | . 7 3 55 Influence Increases 675 | 5 75 60 535 Destroy 0b10 Robot/C 460 | . 60 60 340 Destroy 0b10 Robot/NC 15 | 5 5 . 5 Destroy Leader 60 | . 10 . 50 Disable Machine 15 | . . . 15 Destroy Structure 65 | . . . 65 Lose Combat Pursuer 60 | . . . 60 Influence Decreases 609 | 5 75 60 469 Time Decay 459 | 5 65 60 329 Lost Part 150 | . 10 . 140 Squads Dispatched . | . . . . Investigation . | . . . . Extermination . | . . . . Reinforcement . | . . . . Assault . | . . . . Garrison . | . . . . Intercept . | . . . . Searches Triggered . | . . . . Construction Impeded . | . . . . Haulers Reinforced . | . . . . Active Scanning Responses . | . . . . Cargo Convoy Interrupts . | . . . . Stealth | -11 -10 -9 -9 --------- Run | Yrd Mat Mat Min Distress Signals 2 | . 1 1 . Communications Jammed . | . . . . Distress Signals . | . . . . Times Spotted 33 | . 5 6 22 Peak Tracking Total 6 | . 5 5 6 Tactical Retreats 1 | . . . 1 Traps | -11 -10 -9 -9 ------- Run | Yrd Mat Mat Min Traps Triggered . | . . . . Indirectly . | . . . . Trap Hack Attempts . | . . . . Triggered . | . . . . Disarmed . | . . . . Reprogrammed . | . . . . Reused . | . . . . Traps Extracted . | . . . . Installed . | . . . . Triggered . | . . . . Machines | -11 -10 -9 -9 ---------- Run | Yrd Mat Mat Min Machines Disabled 1 | . . . 1 Max in Single Turn 1 | . . . 1 Machines Repaired . | . . . . Machines Dismantled . | . . . . Machines Sabotaged . | . . . . Overloaded Fab Kills . | . . . . Hacking | -11 -10 -9 -9 --------- Run | Yrd Mat Mat Min Machines Accessed . | . . . . Terminals . | . . . . Fabricators . | . . . . Repair Stations . | . . . . Recycling Units . | . . . . Scanalyzers . | . . . . Garrison Access . | . . . . Total Hacks . | . . . . Successful . | . . . . Failed . | . . . . Catastrophic . | . . . . Database Lockouts . | . . . . Manual . | . . . . Terminals . | . . . . Fabricators . | . . . . Repair Stations . | . . . . Recycling Units . | . . . . Scanalyzers . | . . . . Garrison Access . | . . . . Terminal Hacks . | . . . . Fabricator Hacks . | . . . . Repair Station Hacks . | . . . . Recycling Unit Hacks . | . . . . Scanalyzer . | . . . . Garrison Access Hacks . | . . . . Unauthorized Hacks . | . . . . Terminals . | . . . . Fabricators . | . . . . Repair Stations . | . . . . Recycling Units . | . . . . Scanalyzers . | . . . . Garrison Access . | . . . . Data Cores Recovered . | . . . . Used . | . . . . Hacking Detections . | . . . . Full Trace Events . | . . . . Feedback Events . | . . . . Feedback Blocked . | . . . . Robot Schematics Acquired . | . . . . Robots Built . | . . . . Authchips . | . . . . Time . | . . . . Total Robot Build Rating . | . . . . Part Schematics Acquired . | . . . . Parts Built . | . . . . Authchips . | . . . . Time . | . . . . Total Part Build Rating . | . . . . Part Studies Acquired . | . . . . Parts Repaired . | . . . . Time . | . . . . Parts Recycled . | . . . . Recycled Matter . | . . . . Retrieved Matter . | . . . . Retrieved Components . | . . . . Parts Scanalyzed . | . . . . Part Schematics Acquired . | . . . . Parts Damaged . | . . . . Bothacking | -11 -10 -9 -9 ------------ Run | Yrd Mat Mat Min Used RIF Installer . | . . . . Robots Hacked . | . . . . Non-combat . | . . . . Combat . | . . . . Robot Hacks Applied . | . . . . Relay Couplers Released . | . . . . Fabnet Peak Effective % . | . . . . Robots Rewired . | . . . . Allies Hacked . | . . . . Hacks Repelled . | . . . . Allies | -11 -10 -9 -9 -------- Run | Yrd Mat Mat Min Total Allies 1 | . . . 1 Largest Group 1 | . . . 1 Highest-Rated Group 31 | . . . 31 Highest-Rated Ally 31 | . . . 31 Total Orders . | . . . . Ally Attacks . | . . . . Total Damage . | . . . . Kills . | . . . . Allies Corrupted . | . . . . Allies Melted . | . . . . Intel | -11 -10 -9 -9 ------- Run | Yrd Mat Mat Min Active Infowar (turns) 1469 | . 221 354 894 Sensors 1248 | . . 354 894 Seismic 221 | . 221 . . Robot Analysis Total . | . . . . Derelict Logs Recovered 1 | . . . 1 Drone Launches . | . . . . Drone Recoveries . | . . . . Exploration | -11 -10 -9 -9 ------------- Run | Yrd Mat Mat Min Turns Passed 2335 | 110 426 355 1444 Spaces Moved 709 | 58 207 129 315 Core 83 | 23 . . 60 Treads 584 | 35 207 129 213 Legs 42 | . . . 42 Wheels . | . . . . Hover . | . . . . Flight . | . . . . Fastest Speed 50 | 50 160 240 240 Average Speed 277 | 116 176 240 389 Slowest Speed 1000 | 160 240 240 1000 Overloaded Moves . | . . . . Propulsion Burnouts . | . . . . Robots Hopped . | . . . . Potential Cave-ins . | . . . . Cave-ins Triggered . | . . . . Exploration Rate (%) 31 | 4 36 17 67 Regions Visited 3 Branch Regions 1 Pre-discovered Areas 1 | . . . 1 Known Exits Taken . | . . . . Unknown Exits Taken 3 | 1 1 1 . Scrap Searched 1 | . . . 1 Spaces Dug . | . . . . Terrain Destroyed 101 | . . . 101 Melee . | . . . . Projectile . | . . . . AOE 101 | . . . 101 Terrain Rammed . | . . . . Walls Destroyed . | . . . . Machines Disabled . | . . . . Actions | -11 -10 -9 -9 --------- Run | Yrd Mat Mat Min Total 952 | 80 240 159 473 Wait 113 | . 5 17 91 Move 706 | 57 206 128 315 Hop . | . . . . Pick Up 23 | 6 8 3 6 Fast Attach 2 | 2 . . . Attach 23 | 4 4 2 13 Detach . | . . . . Swap . | . . . . Drop 2 | . 1 . 1 Fire 83 | 11 16 9 47 Melee . | . . . . Ram . | . . . . Kick . | . . . . Crush . | . . . . Escape Stasis . | . . . . Rewire . | . . . . Trap . | . . . . Miscellaneous . | . . . . Route ------- -11/Scrapyard -10/Materials -9/Materials -9/Mines History --------- Turn | Location | Event 5 | -11/Scrapyard | Discovered new exit (range 15) 111 | -11/Scrapyard | Entered Materials 112 | -10/Materials | Met a group of wandering Federalists 303 | -10/Materials | Build established: Mutant 451 | -10/Materials | Discovered new exit (range 16) 537 | -10/Materials | Entered another Materials area 537 | -9/Materials | Evolved 2 slots: Utility x1, Weapon x1 844 | -9/Materials | Build established: Skirmisher 851 | -9/Materials | Discovered new exit (range 12) 892 | -9/Materials | Entered Mines 923 | -9/Mines | Received a Mining Laser from a helpful Derelict 927 | -9/Mines | Learned location of Zion (-6) 1083 | -9/Mines | A weapon hastily lodged in a ceiling crevice suddenly fell to the ground 1407 | -9/Mines | Build established: Mutant 1534 | -9/Mines | Lost 6 parts (1p1n2u2w) 1783 | -9/Mines | Core integrity fell below 50% 1822 | -9/Mines | Core integrity fell below 20% 1845 | -9/Mines | Lost 7 parts (1p2n2u2w) 2336 | -9/Mines | Destroyed self with Grenade Launcher Last Messages --------------- 02045_ U-05 Engineer builds a Wall. 02047_ U-05 Engineer lays Concrete. 02048_ System corrupted: Energy discharge (-68). 02048_ U-05 Engineer lays Concrete. 02053_ U-05 Engineer builds a Wall. 02066_ ::TBWWRBOK%>5Z#XUMPA1ZN:>NCBKZTI/RIXTPM| 02085_ System corrupted: Heat flow error (+252). 02087_ Overheating: System interference. 02087_ Grenade Launcher temporarily disabled. 02120_ System corrupted: IFF burst signal emitted. 02138_ System corrupted: Substantial component data lost. 02199_ System corrupted: Heat flow error (+211). 02259_ 8TYOCZ BXVS#Z74JN#CF=PG 02275_ System corrupted: Substantial component data lost. 02306_ System corrupted: Component data lost. 02328_ IYA>Z2,EIRUQGSETB|%DMN 02335_ Critical hit (Burn: +37). Map ----- +----------------------------------------------------+ | | | | | | | | | | | | | | | | | | | ?????????????????????????????????????????????????? | | ?????????????????????????????????????????????????? | | ?????????????????????????????????????????????????? | | ?????????????????????????????????????????????????? | | ?????????????????????????????????????????????????? | | ?????????????????????????????????????????????????? | | ?????????????????????????????????????????????????? | | ?????????????????????????????????????????????????? | | #??????????????????####??????????????????????????? | | #?????????????????## #????????#????????????????? | | ##????????????????# ###???? #????????????????? | | #????????????????# ##### ##???????????????? | | ##?????????????????# ????????????????? | | #???????????????????# ??????????????????? | | ????????????????????# #???????????????????? | | ?????????????????????# #???????????????????? | | ?????????????????????# @ ######???????????????? | | ?????????????!???##### ????????? | | ????????????!!???# g g #######??????????????? | | ????????????! ???# g ##???????????????????? | | ???????????? ???# ##### ##??????????????????? | | ???????????? ????# ?????## #??????????????????? | | ??????????? ????#??????## #####??????????????? | | ??????????? ???????????# #??????????????? | | ??????????? #???????????# #### ##?????????????? | | ########??? #???????????## ##??# ??????????????? | | #?? ##???????????## ##### #??????????????? | | #?? ##???????????# # #??????????????? | | ##### #?? ##??????????# ##?????????????? | | ????# ### #??????????#### ##????????????? | | ????# #?????????????# ##???????????? | | ????# ##?????????????## ##??????????? | | ????###### #???????????????## #########??? | | ??????????# ##????????????????## #??? | | ???????????###??????????????????### #??? | | ??????????????????????????????????## ####### #??? | | ???????????????????????????????????# #?????# #### | | ??????????????????????????????????## ####### # | | ??????????????????????????????#???## ## # ## | | ??????????????????????????????# ## # ### | | ??????????????????????????????# # ## ## "" | +----------------------------------------------------+ Best States ------------- Heat Dissipation 28 Energy Generation 12 Energy Capacity 265 Matter Stores 400 Matter Capacity 400 Sight Range 16 Robot Scan Range 14 Terrain Scan Density 10 Armor Coverage 225 Core Shielding 20 Evasion (%) 50 Recoil Reduction 2 Item Schematics ----------------- None Robot Schematics ------------------ None Fabricated ------------ Nothing Repaired ---------- Nothing Studied --------- None Alien Tech Used ----------------- None Achievements -------------- None Challenges ------------ None Game ------ Seed AntisysAssaultSpecial Manual? 0 Play Time 00:10:09 Cumulative 31.5 hours Start 2025.11.18 @ 17:16:25 End 2025.11.18 @ 17:25:36 Sessions 1 Manual Loads 0 Difficulty Rogue Special Mode None Game No. 95 Rogue 95 Adventurer 0 Explorer 0 Win Type - Total 0 Types 0/0/0/0/0/0/0/0/0/0 Lore% 7 Gallery% 24 Achievement% 18 Wizard Run 0 Options --------- Layout 1 ASCII 0 Keyboard 0 Movement Mouse Keybinds 0 Fullscreen 1 Font 24/Terminus Map View 50x35 Zoom Use 0% Tactical HUD 1 Map Filters NONE Filters NONE Steam 1 RUN: 06ec5ace-03bd-457d-8154-c88cad5e9c7c